bitfinex-derivatives/quotes_BTCF0:USTF0_20250117
["timestamp","ask_amount","ask_price","bid_price","bid_amount"]
[1737147649586,0.047732,104710.0,104700.0,0.5634157]
[1737147650088,0.047723,104730.0,104700.0,0.72001361]
[1737147650278,0.047723,104730.0,104720.0,0.2026157]
[1737147650683,0.047718,104740.0,104720.0,0.5634157]
[1737147650992,0.047713,104750.0,104730.0,0.5634157]
[1737147651182,0.047717,104750.0,104730.0,0.3608]
[1737147651387,0.408517,104750.0,104720.0,0.5634157]
[1737147651578,0.047721,104730.0,104720.0,0.3608]
[1737147651778,0.047726,104720.0,104700.0,0.5634157]
[1737147651978,0.408521,104730.0,104700.0,0.5634157]
[1737147652179,0.04773,104710.0,104700.0,0.3608]
[1737147652387,0.04773,104710.0,104690.0,1.2912157]
[1737147652581,0.04773,104710.0,104700.0,0.2026157]
[1737147652786,0.04773,104710.0,104690.0,1.2912157]
[1737147653088,0.047735,104700.0,104690.0,1.2912157]
[1737147653289,0.047735,104700.0,104690.0,1.6851157]
[1737147653484,0.047735,104700.0,104690.0,1.3243157]
[1737147653678,0.04774,104690.0,104680.0,0.00011174]
[1737147653883,0.40854,104690.0,104680.0,0.00202232]
[1737147654680,0.40854,104690.0,104680.0,0.00679625]
[1737147656192,0.40854,104690.0,104680.0,0.00488567]
[1737147656687,0.40854,104690.0,104680.0,0.00786938]
[1737147659487,0.40854,104690.0,104680.0,0.00786933]
[1737147659787,0.047749,104670.0,104660.0,0.33992123]
[1737147660090,0.408549,104670.0,104660.0,0.33992123]
[1737147660692,0.40862073,104670.0,104660.0,0.33992123]
[1737147660892,0.047756,104660.0,104650.0,1.13822123]
[1737147661993,0.408556,104660.0,104650.0,0.33992123]
[1737147662382,0.6111717,104660.0,104650.0,0.33992123]
[1737147663092,0.9275717,104660.0,104650.0,0.33992123]
[1737147663390,0.9275717,104660.0,104630.0,0.39604556]
[1737147663391,0.047761,104650.0,104640.0,0.33992123]
[1737147663584,0.408561,104650.0,104640.0,0.33992123]
[1737147663785,0.6111767,104650.0,104640.0,0.33992123]
[1737147663986,1.4045767,104650.0,104640.0,0.33992123]
[1737147664595,1.4045767,104650.0,104640.0,0.28464965]
[1737147666395,0.408561,104650.0,104640.0,0.48726535]
[1737147666593,0.408561,104650.0,104640.0,0.28464965]
[1737147666784,0.408561,104650.0,104630.0,0.89590452]
[1737147666785,0.047765,104640.0,104630.0,0.89590452]
[1737147666989,0.047765,104640.0,104630.0,0.28471982]
[1737147667191,0.408565,104640.0,104630.0,0.28471982]
[1737147667594,0.61124998,104640.0,104630.0,0.28471982]
[1737147668387,0.61124998,104640.0,104630.0,1.9e-07]
[1737147668686,0.04777,104630.0,104620.0,0.23642123]
[1737147668998,1.3094857,104630.0,104620.0,0.23642123]
[1737147669394,0.047779,104610.0,104600.0,0.8825]
[1737147669688,0.769379,104610.0,104600.0,0.4859]
[1737147669998,0.769379,104610.0,104600.0,0.1]
[1737147671690,0.769379,104610.0,104600.0,0.10298609]
[1737147672597,0.769379,104610.0,104600.0,0.23453743]
[1737147672598,0.047779,104610.0,104600.0,0.23453743]
[1737147672792,0.047776,104620.0,104600.0,0.64312143]
[1737147672993,0.047776,104620.0,104610.0,1.25215134]
[1737147673188,0.047776,104620.0,104610.0,1.25513743]
[1737147673592,1.00591134,104620.0,104580.0,0.3608]
[1737147673896,0.49235134,104590.0,104550.0,0.9625175]
[1737147674097,0.54013534,104600.0,104550.0,1.7421175]
[1737147674098,0.3608,104560.0,104550.0,1.7421175]
[1737147674399,0.3608,104570.0,104550.0,1.87366884]
[1737147674596,0.3608,104570.0,104560.0,0.13164576]
[1737147674793,0.36088431,104570.0,104560.0,0.13164576]
[1737147674990,0.36088431,104570.0,104560.0,0.49244576]
[1737147674991,8.431e-05,104570.0,104560.0,0.49244576]
[1737147675204,0.408589,104590.0,104560.0,0.6239971]
[1737147675404,0.408589,104590.0,104580.0,0.13155134]
[1737147675405,0.3608,104590.0,104580.0,0.13155134]
[1737147675703,0.408581,104610.0,104580.0,0.49235134]
[1737147676003,0.047783,104600.0,104590.0,0.13155134]
[1737147676204,0.0479002,104600.0,104580.0,0.87165134]
[1737147676803,0.047788,104590.0,104580.0,0.7401]
[1737147677107,0.54013934,104590.0,104580.0,0.3793]
[1737147677501,0.61152627,104590.0,104580.0,0.3793]
[1737147677810,0.047793,104580.0,104570.0,0.32]
[1737147678608,0.408593,104580.0,104570.0,0.32]
[1737147678811,0.047793,104580.0,104570.0,0.32]
[1737147679312,0.408593,104580.0,104570.0,0.32]
[1737147680310,0.047797,104570.0,104560.0,0.39229442]
[1737147680501,0.408597,104570.0,104560.0,0.39229442]
[1737147680706,0.61153527,104570.0,104560.0,0.39229442]
[1737147681109,0.408597,104570.0,104560.0,0.39229442]
[1737147681809,0.047797,104570.0,104560.0,0.39229442]
[1737147682408,0.047797,104570.0,104560.0,0.75309442]
[1737147682612,0.047793,104580.0,104560.0,0.95603269]
[1737147684921,0.047793,104580.0,104560.0,0.75309442]
[1737147685712,0.047793,104580.0,104560.0,0.75608093]
[1737147686922,0.047793,104580.0,104570.0,0.3608]
[1737147687122,0.047793,104580.0,104570.0,0.36378651]
[1737147687524,0.047789,104590.0,104570.0,0.56672478]
[1737147687719,0.047789,104590.0,104580.0,1.0566]
[1737147687926,0.0001172,104600.0,104580.0,1.26252478]
[1737147688127,0.0479012,104600.0,104590.0,0.3775]
[1737147688321,0.0479012,104600.0,104590.0,0.38048651]
[1737147693828,0.0479012,104600.0,104590.0,0.3775]
[1737147694129,0.0479012,104600.0,104590.0,0.38048586]
[1737147695824,0.4087012,104600.0,104590.0,0.38048586]
[1737147696024,0.0479012,104600.0,104590.0,0.38048586]
[1737147696224,0.61163947,104600.0,104590.0,0.00298586]
[1737147696935,0.99593947,104600.0,104590.0,0.00298586]
[1737147697636,0.92463085,104600.0,104590.0,0.00298586]
[1737147698327,1.0562605,104600.0,104590.0,0.00298586]
[1737147698532,1.3777605,104600.0,104590.0,0.00290155]
[1737147699738,0.047792,104580.0,104570.0,0.34279687]
[1737147699929,0.90102165,104580.0,104570.0,0.34279687]
[1737147700329,0.7311,104590.0,104570.0,0.13162965]
[1737147700534,0.408589,104590.0,104570.0,0.17942565]
[1737147701133,0.408589,104590.0,104580.0,0.34279687]
[1737147701429,0.90101865,104590.0,104580.0,0.34279687]
[1737147701627,0.54021865,104590.0,104580.0,0.34279687]
[1737147701928,0.90101865,104590.0,104580.0,0.34279687]
[1737147703137,0.047792,104580.0,104570.0,0.34279687]
[1737147703434,0.3608,104590.0,104570.0,0.47442652]
[1737147703631,0.047788,104590.0,104580.0,0.49242965]
[1737147704639,0.0001172,104600.0,104590.0,0.047788]
[1737147704933,0.408575,104620.0,104590.0,0.047788]
[1737147704934,0.047775,104620.0,104590.0,1.56281465]
[1737147705133,0.40858,104610.0,104590.0,1.51502965]
[1737147705342,0.047783,104600.0,104590.0,1.3834]
[1737147705940,0.04785112,104600.0,104590.0,1.3834]
[1737147707140,0.04785112,104600.0,104590.0,1.51502965]
[1737147707845,0.04785112,104600.0,104590.0,2.20292561]
[1737147708043,0.04785112,104600.0,104590.0,2.07129596]
[1737147708744,0.04785112,104600.0,104590.0,1.71049596]
[1737147708940,0.04785112,104600.0,104590.0,1.0226]
[1737147709946,0.04785112,104600.0,104590.0,1.3834]
[1737147710243,0.04785112,104600.0,104590.0,1.39429278]
[1737147710444,0.04785112,104600.0,104590.0,2.08517454]
[1737147710637,0.04785112,104600.0,104590.0,2.21680419]
[1737147711347,6.812e-05,104600.0,104590.0,2.21680419]
[1737147712143,0.40858,104610.0,104590.0,2.22158146]
[1737147713046,0.40858,104610.0,104590.0,1.05205181]
[1737147713047,0.54021265,104600.0,104590.0,1.05205181]
[1737147713248,0.408583,104600.0,104590.0,1.04115903]
[1737147713549,0.408583,104600.0,104590.0,0.64140634]
[1737147716942,0.54021265,104600.0,104590.0,1.43281441]
[1737147717143,0.54021265,104600.0,104590.0,1.08731441]
[1737147717751,0.55122065,104600.0,104590.0,1.08731441]
[1737147718152,0.55122065,104600.0,104590.0,1.48726969]
[1737147719052,0.86782065,104600.0,104590.0,1.48726969]
[1737147719554,0.047788,104590.0,104580.0,0.73450313]
[1737147719750,0.54021765,104590.0,104580.0,0.73928208]
[1737147720455,0.408588,104590.0,104580.0,0.73928208]
[1737147720654,0.408588,104590.0,104580.0,0.34763987]
[1737147720958,0.408588,104590.0,104580.0,0.47926952]
[1737147721147,0.419594,104600.0,104580.0,0.52706052]
[1737147721349,0.047788,104590.0,104580.0,0.52706052]
[1737147721648,0.408588,104590.0,104580.0,0.52706052]
[1737147721844,0.408588,104590.0,104580.0,0.00477895]
[1737147722047,0.408588,104590.0,104570.0,1.9304735]
[1737147722650,0.047793,104580.0,104570.0,1.39024785]
[1737147723062,0.047793,104580.0,104570.0,1.77120027]
[1737147723246,0.3608,104590.0,104570.0,2.26362992]
[1737147723560,0.408593,104580.0,104570.0,1.0557]
[1737147723746,0.047793,104580.0,104570.0,1.0557]
[1737147724152,0.90080965,104610.0,104570.0,1.54812965]
[1737147724346,0.90080965,104610.0,104580.0,0.13162965]
[1737147724347,0.047791,104590.0,104580.0,0.13162965]
[1737147724550,0.047791,104590.0,104570.0,2.33379972]
[1737147724950,0.54022265,104580.0,104570.0,0.85703637]
[1737147725359,0.90912265,104580.0,104570.0,0.39994353]
[1737147726258,0.90912265,104580.0,104570.0,0.34281949]
[1737147728051,0.91761735,104580.0,104570.0,0.34281949]
[1737147731661,0.91761735,104580.0,104570.0,0.34580666]
[1737147732359,0.91761735,104580.0,104570.0,0.34580664]
[1737147732958,0.91761735,104580.0,104570.0,0.34580663]
[1737147734159,0.7859877,104580.0,104570.0,0.34580663]
[1737147734353,0.7859877,104580.0,104570.0,0.78363628]
[1737147734354,0.0562877,104580.0,104570.0,0.78363628]
[1737147734663,0.0562877,104580.0,104570.0,1.01280663]
[1737147735157,0.4170877,104580.0,104570.0,0.65200663]
[1737147735357,0.4170877,104580.0,104570.0,0.59484478]
[1737147735758,0.0562877,104580.0,104570.0,0.59484478]
[1737147736354,0.0562877,104580.0,104570.0,0.30918714]
[1737147736949,0.0562877,104580.0,104570.0,0.44081679]
[1737147737260,0.047793,104580.0,104570.0,0.80161679]
[1737147737756,0.047793,104580.0,104570.0,0.66998714]
[1737147738061,0.408584,104600.0,104570.0,0.79862965]
[1737147738062,0.047784,104600.0,104570.0,0.79862965]
[1737147738253,0.047784,104600.0,104590.0,0.49242965]
[1737147738450,0.408584,104600.0,104580.0,0.3608]
[1737147738651,0.3608,104590.0,104570.0,0.13162965]
[1737147738855,0.408593,104580.0,104570.0,0.13162965]
[1737147739058,0.45639,104580.0,104560.0,0.46886264]
[1737147739359,0.408593,104580.0,104560.0,0.46886264]
[1737147739557,0.047798,104570.0,104560.0,0.59737825]
[1737147741167,0.3608,104590.0,104560.0,1.3824079]
[1737147741358,0.408588,104590.0,104580.0,0.13162965]
[1737147741654,0.047788,104590.0,104580.0,0.49242965]
[1737147741860,0.047786,104600.0,104580.0,0.80092965]
[1737147742062,0.047786,104600.0,104590.0,0.42422965]
[1737147742448,0.00143501,104610.0,104590.0,0.9166593]
[1737147742662,0.3608,104630.0,104600.0,0.6718423]
[1737147742663,0.408572,104630.0,104600.0,0.6718423]
[1737147742861,0.408572,104630.0,104620.0,0.13162965]
[1737147743850,0.047775,104620.0,104600.0,0.54021265]
[1737147744054,0.047775,104620.0,104600.0,0.46020688]
[1737147744055,0.047779,104610.0,104600.0,0.46020688]
[1737147744463,0.047779,104610.0,104600.0,0.74640688]
[1737147744762,0.408577,104620.0,104600.0,0.77862965]
[1737147745153,0.408584,104610.0,104590.0,0.43274056]
[1737147745355,0.408584,104610.0,104590.0,0.71894056]
[1737147745758,0.408584,104610.0,104600.0,0.43352965]
[1737147745954,0.3608,104620.0,104600.0,0.5651593]
[1737147746264,0.047779,104610.0,104600.0,0.3019]
[1737147746560,0.047779,104610.0,104600.0,0.43352965]
[1737147746756,0.047777,104620.0,104600.0,0.79432965]
[1737147747065,0.047777,104620.0,104600.0,1.19391064]
[1737147747265,0.408574,104630.0,104600.0,1.19391064]
[1737147747466,0.047779,104610.0,104600.0,1.06228099]
[1737147747668,0.047779,104610.0,104600.0,1.19391064]
[1737147749267,0.3608,104630.0,104600.0,1.32554029]
[1737147749465,0.408572,104630.0,104620.0,0.13162965]
[1737147749866,0.408572,104630.0,104620.0,0.73232965]
[1737147752665,0.41000338,104640.0,104620.0,1.09312965]
[1737147752867,0.41000338,104640.0,104630.0,0.2979]
[1737147753176,0.04777,104630.0,104620.0,0.3134]
[1737147753471,0.54019965,104630.0,104620.0,0.3134]
[1737147753673,0.40857,104630.0,104620.0,0.3134]
[1737147754382,0.40857,104630.0,104620.0,0.44502965]
[1737147756074,0.40857,104630.0,104620.0,0.3134]
[1737147756467,0.40857,104630.0,104620.0,0.65452864]
[1737147756668,0.54019965,104630.0,104620.0,0.65452864]
[1737147757172,0.54019965,104630.0,104620.0,0.34411422]
[1737147757970,0.54019965,104630.0,104620.0,0.3441142]
[1737147758362,1.45089965,104630.0,104620.0,0.2963162]
[1737147758568,1.45089965,104630.0,104620.0,0.00298556]
[1737147761270,1.45976441,104630.0,104620.0,0.00298556]
[1737147763583,1.45976441,104630.0,104620.0,5.6e-07]
[1737147769786,1.41585013,104630.0,104620.0,5.6e-07]
[1737147770279,0.72603476,104630.0,104620.0,5.6e-07]
[1737147770677,0.81375013,104630.0,104620.0,5.6e-07]
[1737147771475,0.72603476,104630.0,104620.0,5.6e-07]
[1737147772283,0.85755303,104630.0,104620.0,5.6e-07]
[1737147773178,0.85755303,104630.0,104610.0,0.4718]
[1737147773383,0.408575,104620.0,104610.0,0.4718]
[1737147773590,0.408575,104620.0,104610.0,0.80037723]
[1737147773971,0.408575,104620.0,104610.0,1.03457723]
[1737147774178,0.408575,104620.0,104610.0,1.2138745]
[1737147774481,0.408575,104620.0,104610.0,0.83751827]
[1737147774885,0.047775,104620.0,104610.0,1.19831827]
[1737147775087,0.41000138,104640.0,104610.0,1.19831827]
[1737147775289,0.04920138,104640.0,104630.0,0.85311827]
[1737147775485,0.04920138,104640.0,104630.0,0.36378485]
[1737147775691,0.04920138,104640.0,104630.0,0.00298485]
[1737147776080,0.41000138,104640.0,104630.0,0.00298485]
[1737147776478,0.04777,104630.0,104620.0,0.49231827]
[1737147776692,0.04777,104630.0,104620.0,0.3608]
[1737147776893,0.04777,104630.0,104620.0,0.39987245]
[1737147777688,0.40857,104630.0,104620.0,0.78557432]
[1737147777883,0.54008827,104630.0,104620.0,0.78557432]
[1737147778090,0.04777,104630.0,104620.0,0.78557432]
[1737147779693,0.04777,104630.0,104620.0,0.85682286]
[1737147780290,0.04777,104630.0,104620.0,1.21762286]
[1737147780990,0.04777,104630.0,104620.0,0.85682286]
[1737147781786,0.04777,104630.0,104620.0,1.21762286]
[1737147782184,0.78606752,104640.0,104620.0,1.34914113]
[1737147782185,0.65454925,104640.0,104620.0,1.34914113]
[1737147782488,0.04920138,104640.0,104630.0,0.49231827]
[1737147782688,0.04920138,104640.0,104630.0,0.3608]
[1737147783791,0.04920138,104640.0,104630.0,1.14637432]
[1737147784796,0.04920138,104640.0,104630.0,0.3608]
[1737147785689,0.04777,104630.0,104620.0,1.22628928]
[1737147785998,0.04777,104630.0,104620.0,1.21762286]
[1737147786186,0.04777,104630.0,104620.0,0.76062577]
[1737147786690,0.04777,104630.0,104620.0,0.89214404]
[1737147787191,0.00143538,104640.0,104620.0,1.59487489]
[1737147787396,0.41737026,104650.0,104630.0,0.49231827]
[1737147787596,0.41737026,104650.0,104630.0,0.13151827]
[1737147787597,0.047766,104640.0,104630.0,0.13151827]
[1737147787791,0.047766,104640.0,104630.0,0.49231827]
[1737147789093,0.05657026,104650.0,104630.0,0.49231827]
[1737147789298,0.047761,104650.0,104640.0,0.95941827]
[1737147790796,0.047761,104650.0,104640.0,1.2879955]
[1737147791601,0.047761,104650.0,104640.0,1.24409213]
[1737147791803,0.047761,104650.0,104640.0,0.9155149]
[1737147792497,0.047761,104650.0,104640.0,1.0880149]
[1737147793596,0.047761,104650.0,104640.0,1.1756298]
[1737147794201,0.047761,104650.0,104640.0,1.0880149]
[1737147794390,0.047761,104650.0,104640.0,1.1756298]
[1737147795199,0.047761,104650.0,104640.0,1.41659213]
[1737147795702,0.047761,104650.0,104640.0,1.50420703]
[1737147795996,0.047761,104650.0,104640.0,1.41659213]
[1737147796995,0.047761,104650.0,104640.0,1.32897723]
[1737147797198,0.408561,104650.0,104640.0,1.05579213]
[1737147797597,0.408561,104650.0,104640.0,0.58869213]
[1737147797799,0.408561,104650.0,104640.0,0.65941131]
[1737147798000,0.4961759,104650.0,104640.0,0.57179641]
[1737147798197,0.047761,104650.0,104640.0,0.57179641]
[1737147798597,0.047761,104650.0,104640.0,0.98798854]
[1737147798798,0.408561,104650.0,104640.0,0.90037364]
[1737147799305,0.4961759,104650.0,104640.0,0.90037364]
[1737147799497,0.4961759,104650.0,104640.0,0.72787364]
[1737147799901,0.4961759,104650.0,104640.0,1.1844523]
[1737147800200,0.6642759,104650.0,104640.0,1.1844523]
[1737147800702,0.8239759,104650.0,104640.0,1.1844523]
[1737147800900,0.8239759,104650.0,104640.0,0.72787364]
[1737147801808,0.047766,104640.0,104630.0,0.72787364]
[1737147802009,0.6548809,104640.0,104630.0,0.72787364]
[1737147802206,0.567266,104640.0,104630.0,0.72787364]
[1737147802508,0.206466,104640.0,104630.0,0.72787364]
[1737147803607,0.206466,104640.0,104630.0,0.81548854]
[1737147804308,0.206466,104640.0,104630.0,0.72787364]
[1737147804309,0.6548809,104640.0,104630.0,0.72787364]
[1737147806102,0.567266,104640.0,104630.0,0.72787364]
[1737147807109,0.206466,104640.0,104630.0,0.72787364]
[1737147807608,0.567266,104640.0,104630.0,0.72787364]
[1737147807808,0.57641854,104640.0,104630.0,0.72787364]
[1737147808009,0.66403344,104640.0,104630.0,0.72787364]
[1737147808405,0.57641854,104640.0,104630.0,0.72787364]
[1737147809305,0.66403344,104640.0,104630.0,0.72787364]
[1737147811512,0.04777,104630.0,104620.0,0.72787364]
[1737147811702,0.04777,104630.0,104620.0,0.73085902]
[1737147812606,0.1353849,104630.0,104620.0,1.21994568]
[1737147813414,0.04777,104630.0,104620.0,0.00298543]
[1737147814819,0.1353849,104630.0,104620.0,0.00298543]
[1737147815405,0.4961849,104630.0,104620.0,4.3e-07]
[1737147815718,0.047775,104620.0,104610.0,0.54228379]
[1737147815917,0.8159899,104620.0,104610.0,0.43860779]
[1737147816408,0.047779,104610.0,104600.0,1.27663339]
[1737147816710,0.047779,104610.0,104600.0,0.78601873]
[1737147816711,0.5838088,104610.0,104600.0,0.78601873]
[1737147816911,0.5838088,104610.0,104600.0,0.32857723]
[1737147818302,0.5838088,104610.0,104570.0,0.6189149]
[1737147818606,0.047788,104590.0,104580.0,0.0876149]
[1737147818801,0.047788,104590.0,104570.0,0.6667079]
[1737147819015,0.047788,104590.0,104580.0,0.0876149]
[1737147819505,0.047788,104590.0,104570.0,0.6667079]
[1737147820611,0.047788,104590.0,104580.0,0.0876149]
[1737147822924,0.047788,104590.0,104570.0,0.6189149]
[1737147824318,0.0589945,104590.0,104580.0,0.0876149]
[1737147824619,0.0589945,104590.0,104570.0,0.6189149]
[1737147824913,0.0589945,104590.0,104580.0,0.0876149]
[1737147825514,0.1067865,104590.0,104570.0,0.6189149]
[1737147825714,0.0589945,104590.0,104570.0,0.6189149]
[1737147826323,0.0589945,104590.0,104580.0,0.0876149]
[1737147833624,0.047788,104590.0,104580.0,0.4484149]
[1737147834718,0.047786,104600.0,104580.0,0.5360298]
[1737147834922,0.047782,104610.0,104590.0,0.7117149]
[1737147835226,0.047775,104620.0,104600.0,0.7198118]
[1737147835410,0.047772,104630.0,104610.0,0.5838078]
[1737147835609,0.047772,104630.0,104620.0,0.7127149]
[1737147835816,0.14057358,104660.0,104620.0,0.80039934]
[1737147836024,0.047759,104660.0,104650.0,0.4484149]
[1737147836313,0.4961669,104670.0,104640.0,0.4484149]
[1737147836521,0.047756,104660.0,104650.0,0.1335]
[1737147837319,0.4961709,104660.0,104650.0,0.1335]
[1737147839426,0.047761,104650.0,104640.0,0.3608]
[1737147839723,0.047761,104650.0,104640.0,0.4484149]
[1737147840317,0.047761,104650.0,104640.0,0.3608]
[1737147841319,0.4961759,104650.0,104630.0,0.78791272]
[1737147841514,0.047766,104640.0,104630.0,0.78791272]
[1737147841709,0.4961809,104640.0,104630.0,0.65391272]
[1737147842423,0.408566,104640.0,104630.0,0.65391272]
[1737147843124,0.408566,104640.0,104630.0,0.59668444]
[1737147843320,0.047763,104650.0,104630.0,0.68429934]
[1737147843521,0.047763,104650.0,104640.0,0.0876149]
[1737147844220,0.047763,104650.0,104640.0,0.42899934]
[1737147844528,0.1353779,104650.0,104640.0,0.34138444]
[1737147844826,0.14674336,104650.0,104640.0,0.34138444]
[1737147845330,0.50754336,104650.0,104640.0,0.34138444]
[1737147845524,0.047766,104640.0,104630.0,0.59668444]
[1737147846725,0.047766,104640.0,104630.0,0.68429934]
[1737147846918,0.047766,104640.0,104630.0,1.04509934]
[1737147849325,0.047766,104640.0,104630.0,0.68429934]
[1737147850727,0.047766,104640.0,104630.0,0.59668444]
[1737147851033,0.5837958,104640.0,104630.0,0.34138444]
[1737147851232,0.8228958,104640.0,104630.0,0.21019837]
[1737147851427,0.10567,104630.0,104620.0,6.954e-05]
[1737147851627,0.6748849,104630.0,104620.0,6.954e-05]
[1737147852321,0.6169849,104630.0,104620.0,6.954e-05]
[1737147852831,0.6169849,104630.0,104620.0,0.00305579]
[1737147853435,0.6169849,104630.0,104620.0,5.4e-07]
[1737147854518,0.6170539,104630.0,104620.0,0.00298679]
[1737147854725,0.6170539,104630.0,104590.0,0.299888]
[1737147854932,0.408584,104600.0,104590.0,0.3875029]
[1737147855124,0.408584,104600.0,104590.0,0.299888]
[1737147855326,0.408584,104600.0,104590.0,0.2521]
[1737147856229,0.4961989,104600.0,104590.0,0.2521]
[1737147856418,0.408584,104600.0,104590.0,0.2521]
[1737147858228,0.047784,104600.0,104590.0,0.2521]
[1737147859632,0.05872115,104600.0,104590.0,0.2521]
[1737147860432,0.50713605,104600.0,104590.0,0.2521]
[1737147860636,0.047788,104590.0,104580.0,0.39861272]
[1737147860827,0.4962029,104590.0,104580.0,0.39861272]
[1737147861028,0.047788,104590.0,104580.0,0.48622762]
[1737147861228,0.04785454,104600.0,104580.0,0.93464252]
[1737147861423,0.04785454,104600.0,104590.0,0.4484149]
[1737147861938,0.0579,104610.0,104590.0,0.4484149]
[1737147862140,0.105679,104610.0,104600.0,0.6863149]
[1737147862432,0.047776,104620.0,104600.0,0.8217128]
[1737147862636,0.047771,104630.0,104610.0,0.5838078]
[1737147862835,0.047771,104630.0,104620.0,0.4484149]
[1737147865138,0.047771,104630.0,104620.0,0.5644149]
[1737147865534,0.04920138,104640.0,104620.0,0.6121889]
[1737147865838,0.04920138,104640.0,104630.0,0.6828149]
[1737147866040,0.06001203,104640.0,104630.0,0.6828149]
[1737147866239,0.04920138,104640.0,104630.0,0.6828149]
[1737147867437,0.00143438,104640.0,104630.0,0.7305849]
[1737147867636,0.00143438,104640.0,104630.0,0.6828149]
[1737147867829,0.04919938,104640.0,104630.0,0.6828149]
[1737147870042,0.04919938,104640.0,104630.0,0.5952]
[1737147870239,0.04919938,104640.0,104630.0,0.3220149]
[1737147870737,0.04919938,104640.0,104630.0,0.33266723]
[1737147871146,0.41966795,104660.0,104630.0,0.69346723]
[1737147871440,0.047764,104650.0,104640.0,0.0876149]
[1737147873248,0.047765,104640.0,104630.0,0.60585233]
[1737147873438,0.047765,104640.0,104630.0,0.69346723]
[1737147882553,0.41966795,104660.0,104630.0,0.69346723]
[1737147882857,1.15229514,104670.0,104650.0,0.4484149]
[1737147882858,0.047754,104670.0,104650.0,0.4484149]
[1737147883052,0.047754,104670.0,104660.0,0.6677149]
[1737147883255,0.047754,104670.0,104660.0,0.7806149]
[1737147886263,0.047754,104670.0,104660.0,0.79098261]
[1737147888455,0.01216927,104680.0,104660.0,0.79098261]
[1737147888456,0.00143387,104680.0,104660.0,1.03063302]
[1737147888757,0.047739,104690.0,104670.0,0.5837758]
[1737147888958,0.047739,104690.0,104680.0,0.4484149]
[1737147890654,0.147737,104700.0,104680.0,0.4961589]
[1737147890849,0.147737,104700.0,104690.0,0.6719149]
[1737147893759,0.147737,104700.0,104690.0,0.7899149]
[1737147894468,0.15825856,104700.0,104690.0,0.7899149]
[1737147894961,0.15825856,104700.0,104690.0,0.5929]
[1737147894962,0.24587346,104700.0,104690.0,0.5929]
[1737147895156,0.15825856,104700.0,104690.0,0.5929]
[1737147895462,0.24587346,104700.0,104690.0,0.3608]
[1737147895758,0.24587346,104700.0,104670.0,0.2004149]
[1737147895759,0.047745,104680.0,104670.0,0.2004149]
[1737147895959,0.047745,104680.0,104670.0,0.5612149]
[1737147896161,0.047745,104680.0,104670.0,0.2004149]
[1737147896471,0.047745,104680.0,104670.0,0.5612149]
[1737147899355,0.38945856,104700.0,104670.0,0.6488298]
[1737147899560,0.38945856,104700.0,104690.0,0.0876149]
[1737147899561,0.27685756,104700.0,104690.0,0.0876149]
[1737147899761,0.04774,104690.0,104680.0,0.3608]
[1737147901262,0.04774,104690.0,104680.0,0.4484149]
[1737147902766,0.04774,104690.0,104680.0,0.0876149]
[1737147902959,0.04774,104690.0,104670.0,0.6089639]
[1737147903159,0.04774,104690.0,104670.0,0.4736]
[1737147903160,0.047745,104680.0,104670.0,0.4736]
[1737147903670,0.047745,104680.0,104670.0,0.5612149]
[1737147904164,0.77301146,104700.0,104670.0,0.6965778]
[1737147904165,0.04774,104690.0,104670.0,0.6965778]
[1737147904360,0.04774,104690.0,104680.0,0.4484149]
[1737147904558,0.22912156,104700.0,104680.0,0.4961589]
[1737147904559,0.27685856,104700.0,104680.0,0.4961589]
[1737147904764,0.11052156,104700.0,104690.0,0.5596149]
[1737147904974,0.1,104700.0,104690.0,0.7277549]
[1737147905458,0.1,104700.0,104690.0,0.8153698]
[1737147905661,0.16846025,104720.0,104700.0,0.047734]
[1737147905662,0.04916025,104720.0,104700.0,0.047734]
[1737147905863,0.04916025,104720.0,104710.0,0.5642149]
[1737147908464,0.00143325,104720.0,104710.0,0.9250149]
[1737147908666,0.00143325,104720.0,104710.0,0.9727459]
[1737147909973,0.159219,104740.0,104710.0,1.07854079]
[1737147910171,0.159219,104740.0,104730.0,0.4484149]
[1737147910569,0.159219,104740.0,104730.0,0.8092149]
[1737147910570,0.047719,104740.0,104730.0,0.8092149]
[1737147911070,0.802219,104760.0,104730.0,0.8968298]
[1737147911071,0.0103945,104750.0,104730.0,0.8968298]
[1737147911371,0.4733,104760.0,104740.0,0.6043319]
[1737147911372,0.047709,104760.0,104740.0,0.6043319]
[1737147911571,0.05813936,104760.0,104750.0,0.4484149]
[1737147911768,0.047709,104760.0,104750.0,0.4484149]
[1737147912864,0.1680376,104770.0,104750.0,0.4484149]
[1737147913069,0.1680376,104770.0,104760.0,0.4484149]
[1737147913465,0.1680376,104770.0,104760.0,0.3608]
[1737147914079,0.6641585,104770.0,104740.0,0.469]
[1737147914275,0.1353269,104750.0,104740.0,0.469]
[1737147914469,0.047712,104750.0,104740.0,0.469]
[1737147914973,0.1353269,104750.0,104740.0,0.1082]
[1737147915173,0.0876149,104750.0,104730.0,0.59168746]
[1737147915380,0.1353309,104740.0,104730.0,0.36088746]
[1737147915878,0.047716,104740.0,104730.0,0.36088746]
[1737147916073,0.1353309,104740.0,104730.0,0.36088746]
[1737147916386,0.634911,104750.0,104730.0,0.44850236]
[1737147916387,0.047713,104750.0,104730.0,0.44850236]
[1737147916573,0.047713,104750.0,104740.0,0.4484149]
[1737147917173,0.047708,104760.0,104740.0,0.4961299]
[1737147917372,0.047708,104760.0,104750.0,0.4484149]
[1737147917578,0.047708,104760.0,104750.0,0.3608]
[1737147917974,0.047708,104760.0,104750.0,0.49195391]
[1737147918982,0.1203326,104770.0,104750.0,0.49195391]
[1737147919182,0.1680386,104770.0,104760.0,0.3608]
[1737147919584,0.1680386,104770.0,104760.0,0.49195391]
[1737147919970,0.0491386,104770.0,104760.0,0.49195391]
[1737147920175,0.741396,104790.0,104760.0,0.49195391]
[1737147920176,0.3608,104790.0,104760.0,0.26230782]
[1737147920373,0.18782594,104830.0,104790.0,0.047693]
[1737147920588,0.14014794,104830.0,104820.0,0.49195391]
[1737147920980,0.14014794,104830.0,104820.0,0.88275391]
[1737147921176,0.14014794,104830.0,104820.0,0.85275391]
[1737147921376,0.14014794,104830.0,104820.0,0.88275391]
[1737147921585,0.287316,104850.0,104820.0,0.93043291]
[1737147921883,0.177716,104850.0,104840.0,0.52195391]
[1737147922085,0.538516,104850.0,104840.0,0.03]
[1737147922284,0.047673,104840.0,104830.0,0.3608]
[1737147922680,0.047673,104840.0,104830.0,0.3908]
[1737147923098,0.53962691,104840.0,104810.0,0.00012364]
[1737147923299,0.047675,104830.0,104820.0,0.13215391]
[1737147923596,0.408475,104830.0,104820.0,0.001]